fUSD/lending_fUSD_20240502
["ID","MTS","AMOUNT","RATE_DAILY","PERIOD"]
[325298577,1714685457051,-500.0,0.0003041,2]
[325298578,1714685457063,-540.04,0.0003041,2]
[325298579,1714685457075,-500.0,0.0003041,2]
[325298580,1714685457088,-1426.03,0.0003041,2]
[325298581,1714685457100,-500.0,0.0003041,2]
[325298582,1714685457110,-500.0,0.0003041,2]
[325298583,1714685457120,-804.61,0.0003041,2]
[325298584,1714685457129,-500.0,0.0003041,2]
[325298585,1714685457138,-500.0,0.0003041,2]
[325298586,1714685457147,-500.0,0.0003041,2]
[325298587,1714685457156,-1061.33,0.0003041,2]
[325298588,1714685457165,-500.0,0.0003041,2]
[325298589,1714685457174,-1326.43,0.0003041,2]
[325298590,1714685457183,-500.0,0.0003041,2]
[325298591,1714685457194,-500.0,0.0003041,2]
[325298592,1714685457203,-704.82,0.0003041,2]
[325298593,1714685457213,-1081.88,0.0003041,2]
[325298594,1714685457223,-500.0,0.0003041,2]
[325298595,1714685457234,-500.0,0.0003041,2]
[325298596,1714685457243,-500.0,0.0003041,2]
[325298597,1714685457254,-720.68,0.0003041,2]
[325298598,1714685457263,-500.0,0.0003041,2]
[325298599,1714685457272,-500.0,0.0003041,2]
[325298600,1714685457281,-500.0,0.0003041,2]
[325298601,1714685457290,-1213.91,0.0003041,2]
[325298602,1714685457299,-500.0,0.0003041,2]
[325298603,1714685457308,-500.0,0.0003041,2]
[325298604,1714685457317,-719.48,0.0003041,2]
[325298605,1714685457326,-500.0,0.0003041,2]
[325298606,1714685457336,-517.86,0.0003041,2]
[325298607,1714685457344,-1329.96,0.0003041,2]
[325298608,1714685457354,-737.96,0.0003041,2]
[325298609,1714685457364,-500.0,0.0003041,2]
[325298610,1714685457373,-826.52,0.0003041,2]
[325298611,1714685457383,-723.83,0.0003041,2]
[325298612,1714685457392,-500.0,0.0003041,2]
[325298613,1714685457401,-1304.65,0.0003041,2]
[325298614,1714685457412,-500.0,0.0003041,2]
[325298615,1714685457421,-500.0,0.0003041,2]
[325298616,1714685457430,-1526.07,0.0003041,2]
[325298617,1714685457439,-583.31157972,0.0003041,2]
[325298618,1714685457448,-1020.31,0.0003041,2]
[325298619,1714685457459,-500.0,0.0003041,2]
[325298620,1714685457473,-865.93,0.0003041,2]
[325298621,1714685457483,-500.0,0.0003041,2]
[325298622,1714685457492,-873.35,0.0003041,2]
[325298623,1714685457503,-691.41,0.0003041,2]
[325298624,1714685457512,-1378.48,0.0003041,2]
[325298625,1714685457522,-500.0,0.0003041,2]
[325298626,1714685457532,-500.0,0.0003041,2]
[325298627,1714685457542,-504.66944444,0.0003041,2]
[325298628,1714685457551,-1410.61,0.0003041,2]
[325298629,1714685457561,-500.0,0.0003041,2]
[325298630,1714685457570,-500.0,0.0003041,2]
[325298631,1714685457580,-500.0,0.0003041,2]
[325298632,1714685457590,-1005.44,0.0003041,2]
[325298633,1714685457600,-500.0,0.0003041,2]
[325298634,1714685457610,-1442.73,0.0003041,2]
[325298635,1714685457622,-500.0,0.0003041,2]
[325298636,1714685457632,-500.0,0.0003041,2]
[325298637,1714685457642,-500.0,0.0003041,2]
[325298638,1714685458180,-500.0,0.0003041,2]
[325298639,1714685458201,-1137.74,0.0003041,2]
[325298640,1714685458226,-500.0,0.0003041,2]
[325298641,1714685458247,-500.0,0.0003041,2]
[325298642,1714685458268,-1242.21,0.0003041,2]
[325298643,1714685458277,-1895.18,0.0003041,2]
[325298644,1714685458287,-1664.39,0.0003041,2]
[325298645,1714685458296,-500.0,0.0003041,2]
[325298646,1714685458305,-500.0,0.0003041,2]
[325298647,1714685458314,-500.0,0.0003041,2]
[325298648,1714685458323,-2131.17,0.0003041,2]
[325298649,1714685458332,-500.0,0.0003041,2]
[325298650,1714685458342,-1367.94,0.0003041,2]
[325298651,1714685458351,-868.21,0.0003041,2]
[325298652,1714685458360,-2543.71,0.0003041,2]
[325298653,1714685458370,-695.48,0.0003041,2]
[325298654,1714685458379,-1219.51,0.0003041,2]
[325298655,1714685458388,-500.0,0.0003041,2]
[325298656,1714685458397,-1207.89,0.0003041,2]
[325298657,1714685458406,-500.0,0.0003041,2]
[325298658,1714685458415,-2187.86,0.0003041,2]
[325298659,1714685458424,-500.0,0.0003041,2]
[325298660,1714685458437,-1893.13,0.0003041,2]
[325298661,1714685458446,-500.0,0.0003041,2]
[325298662,1714685458456,-500.0,0.0003041,2]
[325298663,1714685458468,-500.0,0.0003041,2]
[325298664,1714685458477,-500.0,0.0003041,2]
[325298665,1714685458487,-1405.76,0.0003041,2]
[325298666,1714685458497,-500.0,0.0003041,2]
[325298667,1714685458506,-500.0,0.0003041,2]
[325298668,1714685458516,-500.0,0.0003041,2]
[325298669,1714685458526,-704.62,0.0003041,2]
[325298670,1714685458535,-1078.18,0.0003041,2]
[325298671,1714685458544,-2066.05,0.0003041,2]
[325298672,1714685458554,-500.0,0.0003041,2]
[325298673,1714685458564,-789.01,0.0003041,2]
[325298674,1714685458573,-391.91788716,0.0003041,2]
[325298675,1714685458581,-500.0,0.0003041,2]
[325298676,1714685458591,-500.0,0.0003041,2]
[325298677,1714685458600,-1225.6,0.0003041,2]
[325298678,1714685458609,-507.16,0.0003041,2]
[325298679,1714685458619,-1299.0,0.0003041,2]
[325298680,1714685458629,-500.0,0.0003041,2]
[325298681,1714685458639,-964.54,0.0003041,2]
[325298682,1714685458648,-1080.32,0.0003041,2]
[325298683,1714685458657,-500.0,0.0003041,2]
[325298684,1714685458667,-500.0,0.0003041,2]
[325298685,1714685458676,-500.0,0.0003041,2]
[325298686,1714685458685,-1609.86,0.0003041,2]
[325298687,1714685458694,-761.86,0.0003041,2]
[325298688,1714685458703,-2226.77,0.0003041,2]
[325298689,1714685458712,-500.0,0.0003041,2]
[325298690,1714685458722,-500.0,0.0003041,2]
[325298691,1714685458731,-618.91,0.0003041,2]
[325298692,1714685458741,-1073.22,0.0003041,2]
[325298693,1714685458750,-1214.18,0.0003041,2]
[325298694,1714685458759,-1740.42,0.0003041,2]
[325298695,1714685458768,-741.32,0.0003041,2]
[325298696,1714685458777,-500.0,0.0003041,2]
[325298697,1714685458785,-1095.74,0.0003041,2]
[325298698,1714685458794,-500.0,0.0003041,2]
[325298699,1714685458803,-500.0,0.0003041,2]
[325298700,1714685458812,-500.0,0.0003041,2]
[325298701,1714685458822,-500.0,0.0003041,2]
[325298702,1714685458831,-500.0,0.0003041,2]
[325298703,1714685458840,-500.0,0.0003041,2]
[325298704,1714685458849,-500.0,0.0003041,2]
[325298705,1714685458858,-1165.19,0.0003041,2]
[325298706,1714685458867,-1013.47,0.0003041,2]
[325298707,1714685458875,-983.06,0.0003041,2]
[325298708,1714685458885,-500.0,0.0003041,2]
[325298709,1714685458894,-707.31,0.0003041,2]
[325298710,1714685458903,-500.0,0.0003041,2]
[325298711,1714685458914,-500.0,0.0003041,2]
[325298712,1714685458923,-500.0,0.0003041,2]
[325298713,1714685458932,-1039.7,0.0003041,2]
[325298714,1714685458944,-739.42,0.0003041,2]
[325298715,1714685458955,-2147.74,0.0003041,2]
[325298716,1714685458965,-500.0,0.0003041,2]
[325298717,1714685458976,-1000.28,0.0003041,2]
[325298718,1714685458987,-1276.99,0.0003041,2]
[325298719,1714685458995,-541.21,0.0003041,2]
[325298720,1714685459004,-500.0,0.0003041,2]
[325298721,1714685459014,-500.0,0.0003041,2]
[325298722,1714685459026,-899.34,0.0003041,2]
[325298723,1714685459036,-500.0,0.0003041,2]
[325298724,1714685459045,-1637.55,0.0003041,2]
[325298725,1714685459056,-1948.34,0.0003041,2]
[325298726,1714685459066,-794.19,0.0003041,2]
[325298727,1714685459076,-500.0,0.0003041,2]
[325298728,1714685459086,-500.0,0.0003041,2]
[325298729,1714685459096,-500.0,0.0003041,2]
[325298730,1714685459107,-516.64875559,0.0003041,2]
[325298731,1714685459118,-500.0,0.0003041,2]
[325298732,1714685459127,-500.0,0.0003041,2]
[325298733,1714685459137,-800.1,0.0003041,2]
[325298734,1714685459148,-1310.86,0.0003041,2]
[325298735,1714685459157,-500.0,0.0003041,2]
[325298736,1714685459167,-1876.8,0.0003041,2]
[325298737,1714685459176,-500.0,0.0003041,2]
[325298738,1714685459186,-500.0,0.0003041,2]
[325298739,1714685459196,-500.0,0.0003041,2]
[325298740,1714685459206,-1199.41,0.0003041,2]
[325298741,1714685459215,-500.0,0.0003041,2]
[325298742,1714685459225,-1044.92,0.0003041,2]
[325298743,1714685459234,-877.21,0.0003041,2]
[325298744,1714685459243,-1072.67,0.0003041,2]
[325298745,1714685459253,-1371.05,0.0003041,2]
[325298746,1714685459262,-318.00295198,0.0003041,2]
[325298747,1714685459273,-500.0,0.0003041,2]
[325298748,1714685459282,-869.78,0.0003041,2]
[325298749,1714685459292,-1344.89,0.0003041,2]
[325298750,1714685459301,-500.0,0.0003041,2]
[325298751,1714685459311,-500.0,0.0003041,2]
[325298752,1714685459320,-1567.06,0.0003041,2]
[325298753,1714685459329,-500.0,0.0003041,2]
[325298754,1714685459338,-500.0,0.0003041,2]
[325298755,1714685459348,-1318.74,0.0003041,2]
[325298756,1714685459357,-2290.24,0.0003041,2]
[325298757,1714685459367,-500.0,0.0003041,2]
[325298758,1714685459376,-900.95,0.0003041,2]
[325298759,1714685459385,-500.0,0.0003041,2]
[325298760,1714685459395,-500.0,0.0003041,2]
[325298761,1714685459404,-500.0,0.0003041,2]
[325298762,1714685459413,-500.0,0.0003041,2]
[325298763,1714685459423,-1142.89,0.0003041,2]
[325298764,1714685459432,-500.0,0.0003041,2]
[325298765,1714685459442,-2387.2,0.0003041,2]
[325298766,1714685459451,-1099.39,0.0003041,2]
[325298767,1714685459466,-500.0,0.0003041,2]
[325298768,1714685459475,-500.0,0.0003041,2]
[325298769,1714685459485,-1542.4,0.0003041,2]
[325298770,1714685459495,-1062.57,0.0003041,2]
[325298771,1714685459505,-500.0,0.0003041,2]
[325298772,1714685459514,-500.0,0.0003041,2]
[325298773,1714685459523,-500.0,0.0003041,2]
[325298774,1714685459533,-500.0,0.0003041,2]
[325298775,1714685459543,-550.41,0.0003041,2]
[325298776,1714685459552,-782.27,0.0003041,2]
[325298777,1714685459562,-500.0,0.0003041,2]
[325298778,1714685459571,-1870.33,0.0003041,2]
[325298779,1714685459580,-500.0,0.0003041,2]
[325298780,1714685459590,-500.0,0.0003041,2]
[325298781,1714685459599,-1075.83,0.0003041,2]
[325298782,1714685459608,-1142.25,0.0003041,2]
[325298783,1714685459619,-500.0,0.0003041,2]
[325298784,1714685459629,-1569.77,0.0003041,2]
[325298785,1714685459638,-1094.79,0.0003041,2]
[325298786,1714685459648,-1454.29,0.0003041,2]
[325298787,1714685459657,-500.0,0.0003041,2]
[325298788,1714685459667,-620.46,0.0003041,2]
[325298789,1714685459677,-500.0,0.0003041,2]
[325298790,1714685459687,-729.99,0.0003041,2]
[325298791,1714685459696,-517.5,0.0003041,2]
[325298792,1714685459705,-500.0,0.0003041,2]
[325298793,1714685459715,-500.0,0.0003041,2]
[325298794,1714685459724,-500.0,0.0003041,2]
[325298795,1714685459734,-500.0,0.0003041,2]
[325298796,1714685459743,-944.33,0.0003041,2]
[325298797,1714685459752,-1300.94,0.0003041,2]
[325298798,1714685459762,-2328.85,0.0003041,2]
[325298799,1714685459771,-1044.22,0.0003041,2]
[325298800,1714685459780,-500.0,0.0003041,2]
[325298801,1714685459790,-500.0,0.0003041,2]
[325298802,1714685459799,-500.0,0.0003041,2]
[325298803,1714685459808,-1190.62,0.0003041,2]
[325298804,1714685459818,-990.0,0.0003041,2]
[325298805,1714685459827,-562.82,0.0003041,2]
[325298806,1714685459836,-341.97059905,0.0003041,2]
[325298807,1714685459846,-500.0,0.0003041,2]
[325298808,1714685459856,-509.06,0.0003041,2]
[325298809,1714685459868,-1815.08,0.0003041,2]
[325298810,1714685459877,-500.0,0.0003041,2]
[325298811,1714685459886,-500.0,0.0003041,2]
[325298812,1714685459895,-856.98,0.0003041,2]
[325298813,1714685459906,-815.65,0.0003041,2]
[325298814,1714685459918,-500.0,0.0003041,2]
[325298815,1714685459927,-500.0,0.0003041,2]
[325298816,1714685459937,-500.0,0.0003041,2]
[325298817,1714685459946,-500.0,0.0003041,2]
[325298818,1714685459955,-613.01,0.0003041,2]
[325298819,1714685459964,-664.45,0.0003041,2]
[325298820,1714685459973,-510.47,0.0003041,2]
[325298821,1714685459983,-500.0,0.0003041,2]
[325298822,1714685459992,-500.0,0.0003041,2]
[325298823,1714685460002,-500.0,0.0003041,2]
[325298824,1714685460013,-584.8,0.0003041,2]
[325298825,1714685460024,-500.0,0.0003041,2]
[325298826,1714685460034,-500.0,0.0003041,2]
[325298827,1714685460043,-3111.19,0.0003041,2]
[325298828,1714685460054,-500.0,0.0003041,2]
[325298829,1714685460065,-984.3,0.0003041,2]
[325298830,1714685460075,-500.0,0.0003041,2]
[325298831,1714685460086,-500.0,0.0003041,2]
[325298832,1714685460096,-836.42,0.0003041,2]
[325298833,1714685460105,-500.0,0.0003041,2]
[325298834,1714685460115,-500.0,0.0003041,2]
[325298835,1714685460124,-500.0,0.0003041,2]
[325298836,1714685460133,-1193.27,0.0003041,2]
[325298837,1714685460142,-500.0,0.0003041,2]
[325298838,1714685460151,-1063.34,0.0003041,2]
[325298839,1714685460161,-1075.36,0.0003041,2]
[325298840,1714685460172,-500.0,0.0003041,2]
[325298841,1714685460181,-805.47,0.0003041,2]
[325298842,1714685460191,-500.0,0.0003041,2]
[325298843,1714685460200,-9532.1,0.0003041,2]
[325298844,1714685460209,-500.0,0.0003041,2]
[325298845,1714685460220,-546.29,0.0003041,2]
[325298846,1714685460230,-1415.5,0.0003041,2]
[325298847,1714685460240,-500.0,0.0003041,2]
[325298848,1714685460249,-704.72,0.0003041,2]
[325298849,1714685460259,-4492.02,0.0003041,2]
[325298850,1714685460269,-7389.74,0.0003041,2]
[325298851,1714685460279,-846.67,0.0003041,2]
[325298852,1714685460288,-500.0,0.0003041,2]
[325298853,1714685460298,-1257.02,0.0003041,2]
[325298854,1714685460308,-500.0,0.0003041,2]
[325298855,1714685460319,-500.0,0.0003041,2]
[325298856,1714685460329,-500.0,0.0003041,2]
[325298857,1714685460339,-838.7,0.0003041,2]
[325298858,1714685460349,-2117.92,0.0003041,2]
[325298859,1714685460359,-6665.37,0.0003041,2]
[325298860,1714685460368,-500.0,0.0003041,2]
[325298861,1714685460378,-500.0,0.0003041,2]
[325298862,1714685460387,-500.0,0.0003041,2]
[325298863,1714685460397,-500.0,0.0003041,2]
[325298864,1714685460407,-1074.76,0.0003041,2]
[325298865,1714685460416,-500.0,0.0003041,2]
[325298866,1714685460426,-500.0,0.0003041,2]
[325298867,1714685460436,-500.0,0.0003041,2]
[325298868,1714685460445,-500.0,0.0003041,2]
[325298869,1714685460455,-1167.43,0.0003041,2]
[325298870,1714685460467,-10738.81,0.0003041,2]
[325298871,1714685460477,-500.0,0.0003041,2]
[325298872,1714685460487,-500.0,0.0003041,2]
[325298873,1714685460496,-1677.7,0.0003041,2]
[325298874,1714685460507,-1297.09,0.0003041,2]
[325298875,1714685460516,-850.3,0.0003041,2]
[325298876,1714685460526,-953.69,0.0003041,2]
[325298877,1714685460535,-902.23,0.0003041,2]
[325298878,1714685460546,-1576.36,0.0003041,2]
[325298879,1714685460555,-500.0,0.0003041,2]
[325298880,1714685460565,-644.54,0.0003041,2]
[325298881,1714685460575,-500.0,0.0003041,2]
[325298882,1714685460584,-500.0,0.0003041,2]
[325298883,1714685460593,-500.0,0.0003041,2]
[325298884,1714685460603,-500.0,0.0003041,2]
[325298885,1714685460612,-503.5097941,0.0003041,2]
[325298886,1714685460623,-500.0,0.0003041,2]
[325298887,1714685460634,-1456.22,0.0003041,2]
[325298888,1714685460643,-1067.52,0.0003041,2]
[325298889,1714685460653,-870.67,0.0003041,2]
[325298890,1714685460662,-500.0,0.0003041,2]
[325298891,1714685460672,-641.63428597,0.0003041,2]
[325298892,1714685460682,-422.25098837,0.0003041,2]
[325298893,1714685460691,-500.0,0.0003041,2]
[325298894,1714685460701,-500.0,0.0003041,2]
[325298895,1714685460710,-1590.65,0.0003041,2]
[325298896,1714685460719,-10749.14,0.0003041,2]
[325298897,1714685460729,-2359.25,0.0003041,2]
[325298898,1714685460739,-519.53297415,0.0003041,2]
[325298899,1714685460748,-500.0,0.0003041,2]
[325298900,1714685460757,-500.0,0.0003041,2]
[325298901,1714685460767,-619.25,0.0003041,2]
[325298902,1714685460777,-500.0,0.0003041,2]
[325298903,1714685460787,-1106.0,0.0003041,2]
[325298904,1714685460797,-827.0,0.0003041,2]
[325298905,1714685460807,-1053.7,0.0003041,2]
[325298906,1714685460816,-1151.92,0.0003041,2]
[325298907,1714685460826,-1347.14,0.0003041,2]
[325298908,1714685460836,-2190.57,0.0003041,2]
[325298909,1714685460845,-1167.32,0.0003041,2]
[325298910,1714685460855,-1111.37,0.0003041,2]
[325298911,1714685460864,-574.71,0.0003041,2]
[325298912,1714685460873,-648.24547311,0.0003041,2]
[325298913,1714685460883,-3195.42,0.0003041,2]
[325298914,1714685460892,-2482.38,0.0003041,2]
[325298915,1714685460901,-500.0,0.0003041,2]
[325298916,1714685460910,-2879.01,0.0003041,2]
[325298917,1714685461094,-9549.28,0.0003041,2]
[325298918,1714685461112,-526.75,0.0003041,2]
[325298919,1714685461122,-318.26106048,0.0003041,2]
[325298920,1714685461131,-500.0,0.0003041,2]
[325298921,1714685461141,-500.0,0.0003041,2]
[325298922,1714685461152,-2816.33,0.0003041,2]
[325298923,1714685461162,-1830.51,0.0003041,2]
[325298924,1714685461173,-848.7,0.0003041,2]
[325298925,1714685461184,-500.0,0.0003041,2]
[325298926,1714685461194,-1153.09,0.0003041,2]
[325298927,1714685461205,-1152.34,0.0003041,2]
[325298928,1714685461214,-876.2,0.0003041,2]
[325298929,1714685461224,-3043.38,0.0003041,2]
[325298930,1714685461233,-500.0,0.0003041,2]
[325298931,1714685461243,-500.0,0.0003041,2]
[325298932,1714685461252,-5354.82,0.0003041,2]
[325298933,1714685461260,-991.13,0.0003041,2]
[325298934,1714685461270,-2658.12,0.0003041,2]
[325298935,1714685461279,-500.0,0.0003041,2]
[325298936,1714685461289,-377.42593587,0.0003041,2]
[325298937,1714685461298,-1108.58,0.0003041,2]
[325298938,1714685461307,-500.0,0.0003041,2]
[325298939,1714685461317,-1408.33,0.0003041,2]
[325298940,1714685461326,-37576.89,0.0003041,2]
[325298941,1714685461336,-2107.85,0.0003041,2]
[325298942,1714685461346,-11348.74,0.0003041,2]
[325298943,1714685461356,-16578.61,0.0003041,2]
[325298944,1714685461366,-500.0,0.0003041,2]
[325298945,1714685461378,-1168.79,0.0003041,2]
[325298946,1714685461388,-2194.13,0.0003041,2]
[325298947,1714685461398,-2383.0,0.0003041,2]
[325298948,1714685461409,-500.0,0.0003041,2]
[325298949,1714685461418,-500.0,0.0003041,2]
[325298950,1714685461428,-3317.76,0.0003041,2]
[325298951,1714685461438,-2387.46,0.0003041,2]
[325298952,1714685461447,-500.0,0.0003041,2]
[325298953,1714685461459,-10341.95,0.0003041,2]
[325298954,1714685461472,-3521.9,0.0003041,2]
[325298955,1714685461482,-879.49,0.0003041,2]
[325298956,1714685461493,-1072.3,0.0003041,2]
[325298957,1714685461503,-500.0,0.0003041,2]
[325298958,1714685461513,-684.93,0.0003041,2]
[325298959,1714685461523,-1787.66,0.0003041,2]
[325298960,1714685461532,-1114.78,0.0003041,2]
[325298961,1714685461544,-2910.8,0.0003041,2]
[325298962,1714685461554,-500.0,0.0003041,2]
[325298963,1714685461564,-500.0,0.0003041,2]
[325298964,1714685461573,-500.0,0.0003041,2]
[325298965,1714685461582,-1831.76,0.0003041,2]
[325298966,1714685461592,-500.0,0.0003041,2]
[325298967,1714685461601,-912.56,0.0003041,2]
[325298968,1714685461613,-874.99,0.0003041,2]
[325298969,1714685461623,-2756.99,0.0003041,2]
[325298970,1714685461633,-1333.92,0.0003041,2]
[325298971,1714685461643,-503.6719978,0.0003041,2]
[325298972,1714685461652,-1297.56,0.0003041,2]
[325298973,1714685461662,-500.0,0.0003041,2]
[325298974,1714685461671,-6141.64,0.0003041,2]
[325298975,1714685461680,-546.54,0.0003041,2]
[325298976,1714685461690,-2776.97,0.0003041,2]
[325298977,1714685461699,-500.0,0.0003041,2]
[325298978,1714685461709,-5022.45,0.0003041,2]
[325298979,1714685461718,-500.0,0.0003041,2]
[325298980,1714685461727,-1093.44,0.0003041,2]
[325298981,1714685461736,-1337.09,0.0003041,2]
[325298982,1714685461746,-500.0,0.0003041,2]
[325298983,1714685461756,-6940.69,0.0003041,2]
[325298984,1714685461765,-7950.98,0.0003041,2]
[325298985,1714685461774,-500.0,0.0003041,2]
[325298986,1714685461784,-1307.77,0.0003041,2]
[325298987,1714685461794,-500.0,0.0003041,2]
[325298988,1714685461804,-500.0,0.0003041,2]
[325298989,1714685461813,-500.0,0.0003041,2]
[325298990,1714685461824,-1082.95,0.0003041,2]
[325298991,1714685461834,-640.47,0.0003041,2]
[325298992,1714685461843,-974.91,0.0003041,2]
[325298993,1714685461853,-500.0,0.0003041,2]
[325298994,1714685461862,-1270.92,0.0003041,2]
[325298995,1714685461871,-882.45,0.0003041,2]
[325298996,1714685461880,-24228.53,0.0003041,2]
[325298997,1714685461890,-2250.22,0.0003041,2]
[325298998,1714685461899,-600.89,0.0003041,2]
[325298999,1714685461908,-6890.25,0.0003041,2]
[325299000,1714685461918,-641.16,0.0003041,2]
[325299001,1714685461927,-500.0,0.0003041,2]
[325299002,1714685461936,-3261.94,0.0003041,2]
[325299003,1714685461945,-500.0,0.0003041,2]
[325299004,1714685461954,-4457.72,0.0003041,2]
[325299005,1714685461964,-2605.53,0.0003041,2]
[325299006,1714685461973,-2439.91,0.0003041,2]
[325299007,1714685461982,-500.0,0.0003041,2]
[325299008,1714685461992,-500.0,0.0003041,2]
[325299009,1714685462002,-1168.53,0.0003041,2]
[325299010,1714685462012,-1217.58,0.0003041,2]
[325299011,1714685462021,-500.0,0.0003041,2]
[325299012,1714685462031,-1074.58,0.0003041,2]
[325299013,1714685462041,-10260.87,0.0003041,2]
[325299014,1714685462051,-2370.94,0.0003041,2]
[325299015,1714685462061,-1195.02,0.0003041,2]
[325299016,1714685462070,-2379.18,0.0003041,2]
[325299017,1714685462080,-2059.58,0.0003041,2]
[325299018,1714685462089,-1533.63,0.0003041,2]
[325299019,1714685462098,-3433.21,0.0003041,2]
[325299020,1714685462108,-1288.35,0.0003041,2]
[325299021,1714685462117,-500.0,0.0003041,2]
[325299022,1714685462126,-3419.66,0.0003041,2]
[325299023,1714685462135,-904.2,0.0003041,2]
[325299024,1714685462144,-692.28,0.0003041,2]
[325299025,1714685462154,-500.0,0.0003041,2]
[325299026,1714685462163,-1719.72,0.0003041,2]
[325299027,1714685462172,-500.0,0.0003041,2]
[325299028,1714685462181,-1079.19,0.0003041,2]
[325299029,1714685462190,-500.0,0.0003041,2]
[325299030,1714685462199,-1531.06,0.0003041,2]
[325299031,1714685462208,-896.62,0.0003041,2]
[325299032,1714685462217,-2283.35,0.0003041,2]
[325299033,1714685462227,-641.02,0.0003041,2]
[325299034,1714685462236,-948.8,0.0003041,2]
[325299035,1714685462245,-506.10956096,0.0003041,2]
[325299036,1714685462254,-3001.35,0.0003041,2]
[325299037,1714685462264,-1041.15,0.0003041,2]
[325299038,1714685462275,-3108.37,0.0003041,2]
[325299039,1714685462284,-1360.06,0.0003041,2]
[325299040,1714685462293,-2323.24,0.0003041,2]
[325299041,1714685462302,-2821.06,0.0003041,2]
[325299042,1714685462311,-1048.2,0.0003041,2]
[325299043,1714685462320,-1507.74,0.0003041,2]
[325299044,1714685462330,-500.0,0.0003041,2]
[325299045,1714685462339,-500.0,0.0003041,2]
[325299046,1714685462348,-1387.16,0.0003041,2]
[325299047,1714685462358,-500.0,0.0003041,2]
[325299048,1714685462368,-2470.23,0.0003041,2]
[325299049,1714685462379,-500.0,0.0003041,2]
[325299050,1714685462389,-1659.44,0.0003041,2]
[325299051,1714685462398,-5260.43,0.0003041,2]
[325299052,1714685462408,-2340.68,0.0003041,2]
[325299053,1714685462417,-3256.42,0.0003041,2]
[325299054,1714685462426,-500.0,0.0003041,2]
[325299055,1714685462436,-694.66,0.0003041,2]
[325299056,1714685462445,-566.59,0.0003041,2]
[325299057,1714685462456,-7971.27,0.0003041,2]
[325299058,1714685462470,-1059.24,0.0003041,2]
[325299059,1714685462480,-1111.88,0.0003041,2]
[325299060,1714685462490,-1858.16,0.0003041,2]
[325299061,1714685462501,-500.0,0.0003041,2]
[325299062,1714685462511,-500.0,0.0003041,2]
[325299063,1714685462521,-4472.15,0.0003041,2]
[325299064,1714685462530,-3422.09,0.0003041,2]
[325299065,1714685462542,-5997.46,0.0003041,2]
[325299066,1714685462552,-3077.33,0.0003041,2]
[325299067,1714685462561,-624.27,0.0003041,2]
[325299068,1714685462571,-1786.01,0.0003041,2]
[325299069,1714685462580,-838.26,0.0003041,2]
[325299070,1714685462591,-1679.04,0.0003041,2]
[325299071,1714685462600,-528.55,0.0003041,2]
[325299072,1714685462610,-2970.04,0.0003041,2]
[325299073,1714685462621,-6087.74,0.0003041,2]
[325299074,1714685462630,-3910.94,0.0003041,2]
[325299075,1714685462640,-1175.0,0.0003041,2]
[325299076,1714685462650,-2070.79,0.0003041,2]